bitfinex/quotes_SOLUSD_20241210
["timestamp","ask_amount","ask_price","bid_price","bid_amount"]
[1733801036655,239.61969327,209.08,208.82,10.0]
[1733801036868,239.61969327,209.08,208.79,10.7182436]
[1733801036869,239.61969327,209.08,208.85,10.0]
[1733801037062,239.61969327,209.08,208.87,10.0]
[1733801037265,5.9785,209.16,208.9,10.0]
[1733801037266,245.59819327,209.16,208.9,10.0]
[1733801037678,245.59819327,209.16,208.92,10.0]
[1733801037883,245.59819327,209.16,208.94,20.0]
[1733801038064,5.9785,209.16,208.96,10.0]
[1733801038381,5.9785,209.16,208.97,10.0]
[1733801038580,5.9785,209.16,208.95,10.0]
[1733801038971,5.9785,209.16,208.92,10.0]
[1733801039185,5.9785,209.16,208.89,10.0]
[1733801039482,5.9785,209.16,208.95,20.0]
[1733801040060,5.9785,209.16,208.99,10.0]
[1733801040271,5.9785,209.16,209.03,10.0]
[1733801040590,5.9785,209.16,208.94,10.0]
[1733801040880,5.9785,209.16,208.91,10.0]
[1733801040881,5.9785,209.16,208.93,10.0]
[1733801041065,5.9785,209.16,208.91,10.0]
[1733801041211,5.9785,209.16,208.97,10.0]
[1733801041490,5.9785,209.16,208.96,10.0]
[1733801041791,245.59819327,209.16,208.9,10.0]
[1733801042091,14.34,209.14,208.89,10.0]
[1733801042264,245.59819327,209.16,208.91,10.0]
[1733801042465,245.59819327,209.16,208.92,10.0]
[1733801042661,245.59819327,209.16,208.91,10.0]
[1733801043161,245.59819327,209.16,208.94,10.0]
[1733801043380,245.59819327,209.16,208.96,10.0]
[1733801043591,245.59819327,209.16,208.95,10.0]
[1733801043592,5.9785,209.16,209.01,10.0]
[1733801043769,5.9785,209.16,209.07,10.0]
[1733801043964,70.0,209.28,208.97,10.0]
[1733801044172,14.34,209.23,208.93,10.0]
[1733801044376,15.6881,209.31,208.88,42.91155789]
[1733801044377,253.77165947,209.16,208.88,10.0]
[1733801044578,70.0,209.1,208.82,10.0]
[1733801044796,239.43165947,209.16,208.88,10.0]
[1733801044967,239.43165947,209.16,208.89,20.0]
[1733801045171,253.77165947,209.16,208.94,10.0]
[1733801045369,253.77165947,209.16,208.92,10.0]
[1733801045596,253.77165947,209.16,208.89,10.0]
[1733801045801,15.6881,209.19,208.94,10.0]
[1733801045985,15.6881,209.19,209.04,10.0]
[1733801046187,9.7096,209.3,209.12,10.0]
[1733801046400,9.7096,209.3,209.04,10.0]
[1733801046572,79.7096,209.3,208.99,10.0]
[1733801046773,15.6881,209.23,208.93,10.0]
[1733801046988,239.43165947,209.16,208.93,10.0]
[1733801047193,239.43165947,209.16,208.92,10.0]
[1733801047494,239.43165947,209.16,208.91,10.0]
[1733801047699,85.6881,209.23,208.97,10.0]
[1733801047895,15.6881,209.23,209.02,10.0]
[1733801048088,15.6881,209.23,209.01,10.0]
[1733801048089,15.6881,209.23,209.07,10.0]
[1733801048287,15.6881,209.23,209.06,10.0]
[1733801048489,15.6881,209.23,209.0,10.0]
[1733801049108,70.0,209.19,208.91,10.0]
[1733801049275,14.34,209.19,208.92,10.0]
[1733801049476,309.43165947,209.15,208.87,10.0]
[1733801049678,255.11975947,209.23,208.96,10.0]
[1733801049902,255.11975947,209.23,208.99,10.0]
[1733801050198,15.6881,209.23,209.11,10.0]
[1733801050401,15.6881,209.23,209.09,10.0]
[1733801050579,15.6881,209.23,208.96,20.0]
[1733801050781,15.6881,209.23,209.04,10.0]
[1733801051096,15.6881,209.23,209.02,10.0]
[1733801051294,255.12953694,209.23,209.01,10.0]
[1733801051496,255.12953694,209.23,208.93,10.0]
[1733801051497,255.12953694,209.23,209.0,10.0]
[1733801051686,255.12953694,209.23,209.02,10.0]
[1733801051889,15.6881,209.23,209.08,10.0]
[1733801052286,15.6881,209.23,209.05,10.0]
[1733801052482,70.0,209.21,208.91,20.0]
[1733801052684,309.44143694,209.15,208.86,20.0]
[1733801052882,309.44143694,209.15,208.82,20.0]
[1733801052883,70.0,209.11,208.82,20.0]
[1733801053111,6.7212,209.1,208.82,10.0]
[1733801053414,239.44143694,209.07,208.8,10.0]
[1733801053594,239.44143694,209.07,208.79,0.7182436]
[1733801053595,70.0,209.02,208.79,0.7182436]
[1733801053797,80.0806,209.04,208.79,10.6525436]
[1733801054187,70.0,209.01,208.79,0.6525436]
[1733801054500,70.0,208.95,208.66,10.0]
[1733801054817,70.0,208.95,208.63,10.0]
[1733801055025,70.0,208.94,208.7,10.0]
[1733801055226,70.0,208.9,208.7,10.0]
[1733801055512,70.0,208.87,208.58,10.0]
[1733801055687,70.0,208.9,208.67,10.0]
[1733801055891,70.0,208.9,208.63,10.0]
[1733801056115,70.0,208.85,208.55,10.0]
[1733801056315,16.8018,208.81,208.55,10.0]
[1733801056620,16.8018,208.81,208.64,10.0]
[1733801056922,16.8018,208.81,208.65,10.0]
[1733801057695,16.8018,208.81,208.62,10.0]
[1733801057888,16.8018,208.81,208.55,0.0799746]
[1733801057889,239.44143694,208.76,208.55,0.0799746]
[1733801058289,70.0,208.74,208.55,0.0799746]
[1733801058485,239.44143694,208.76,208.55,0.0799746]
[1733801058712,239.44143694,208.76,208.59,10.0]
[1733801058896,16.8018,208.81,208.63,10.0]
[1733801059092,16.8018,208.81,208.59,10.0]
[1733801059314,16.8018,208.81,208.55,0.0799746]
[1733801059315,16.8018,208.81,208.55,10.0799746]
[1733801059514,16.8018,208.81,208.63,10.0]
[1733801059729,16.8018,208.81,208.69,10.0]
[1733801059932,16.8018,208.81,208.72,10.0]
[1733801060130,256.24323694,208.92,208.71,10.0]
[1733801060428,16.8018,208.92,208.69,10.0]
[1733801060929,239.44143694,209.0,208.82,10.0]
[1733801061228,16.8018,209.03,208.83,10.0]
[1733801061736,239.44143694,209.0,208.74,10.0]
[1733801062037,239.44143694,208.92,208.66,10.0]
[1733801062215,309.44143694,208.92,208.68,10.0]
[1733801062404,309.44143694,208.92,208.7,10.0]
[1733801062605,309.44143694,208.92,208.72,10.0]
[1733801062606,239.44143694,208.92,208.72,10.0]
[1733801062807,70.0,208.98,208.7,20.0]
[1733801063015,244.01184293,209.0,208.76,20.0]
[1733801063219,70.0,208.98,208.71,20.0]
[1733801063417,244.01184293,209.0,208.79,10.0]
[1733801064024,244.01184293,209.0,208.76,10.0]
[1733801064228,314.01184293,209.0,208.73,10.0]
[1733801064434,244.01184293,209.0,208.77,10.0]
[1733801064726,244.01184293,209.0,208.8,20.0]
[1733801064932,16.8018,209.03,208.83,10.0]
[1733801065305,16.8018,209.03,208.74,42.91155789]
[1733801065306,16.8018,209.03,208.86,10.0]
[1733801065509,16.8018,209.03,208.87,10.0]
[1733801065819,16.8018,209.03,208.88,10.0]
[1733801066037,16.8018,209.03,208.89,10.0]
[1733801066214,16.8018,209.03,208.85,10.0]
[1733801066411,20.0,209.0,208.82,10.0]
[1733801066609,259.44143694,209.0,208.76,10.0]
[1733801067113,259.44143694,209.0,208.77,10.0]
[1733801067328,259.44143694,209.0,208.82,10.0]
[1733801067623,20.0,209.0,208.87,10.0]
[1733801067824,20.0,209.0,208.85,10.0]
[1733801068025,20.0,209.0,208.79,10.0]
[1733801068242,20.0,209.0,208.76,10.0]
[1733801068448,20.0,209.0,208.78,10.0]
[1733801068641,20.0,209.0,208.81,10.0]
[1733801068947,20.0,209.0,208.83,10.0]
[1733801069150,20.0,209.0,208.78,20.0]
[1733801069448,20.0,209.0,208.79,10.0]
[1733801069630,70.0,208.94,208.69,10.0]
[1733801069832,259.44143694,209.0,208.79,10.0]
[1733801070034,259.44143694,209.0,208.8,10.0]
[1733801070243,259.44143694,209.0,208.77,10.0]
[1733801070552,70.0,208.98,208.77,10.0]
[1733801070765,70.0,208.95,208.73,10.0]
[1733801071007,84.34,208.95,208.73,10.0]
[1733801071269,10.7477,208.87,208.65,10.0]
[1733801071423,6.4067,208.86,208.66,10.0]
[1733801071627,6.4067,208.86,208.7,20.0]
[1733801072065,6.4067,208.86,208.68,20.0]
[1733801072230,6.4067,208.86,208.7,10.0]
[1733801072432,6.4067,208.86,208.68,10.0]
[1733801072756,6.4067,208.86,208.67,10.0]
[1733801072929,20.7467,208.86,208.67,20.0]
[1733801073134,6.4067,208.86,208.66,0.0799746]
[1733801073661,76.4067,208.86,208.66,0.0799746]
[1733801073855,70.0,208.79,208.66,0.0799746]
[1733801074069,14.34,208.73,208.54,10.0]
[1733801074378,17.1544,208.7,208.48,10.0]
[1733801074534,84.34,208.68,208.45,10.0]
[1733801074752,17.1544,208.7,208.44,39.3097671]
[1733801074950,31.4944,208.7,208.5,10.0]
[1733801075255,84.34,208.68,208.48,10.0]
[1733801075452,84.34,208.68,208.44,39.3097671]
[1733801075453,14.34,208.64,208.44,29.3097671]
[1733801075774,14.34,208.64,208.43,0.8316866]
[1733801075775,14.34,208.57,208.43,0.8316866]
[1733801075952,70.0,208.61,208.43,0.8316866]
[1733801076156,239.44143694,208.68,208.46,10.0]
[1733801076680,239.44143694,208.68,208.43,0.8316866]
[1733801076681,70.0,208.61,208.43,0.8316866]
[1733801076851,239.44143694,208.68,208.43,10.8316866]
[1733801076852,70.0,208.64,208.43,10.8316866]
[1733801077050,70.0,208.65,208.43,10.8316866]
[1733801077252,70.0,208.58,208.43,0.8316866]
[1733801077487,70.0,208.61,208.43,0.8316866]
[1733801077783,70.0,208.66,208.44,10.0]
[1733801077950,14.34,208.66,208.44,20.0]
[1733801078153,239.44143694,208.68,208.46,10.0]
[1733801078154,84.34,208.65,208.46,10.0]
[1733801078579,84.34,208.65,208.44,20.0]
[1733801078881,309.44143694,208.68,208.46,20.0]
[1733801079061,17.1544,208.7,208.52,10.0]
[1733801079267,17.1544,208.7,208.48,10.0]
[1733801079460,17.1544,208.7,208.43,0.8316866]
[1733801079461,17.1544,208.7,208.5,10.0]
[1733801079872,70.0,208.69,208.5,10.0]
[1733801080186,17.1544,208.7,208.51,10.0]
[1733801080382,17.1544,208.7,208.52,10.0]
[1733801080585,17.1544,208.7,208.57,10.0]
[1733801081087,17.1544,208.7,208.58,20.0]
[1733801081272,6.4067,208.7,208.55,20.0]
[1733801081575,6.4067,208.7,208.57,20.0]
[1733801081878,6.4067,208.7,208.53,10.0]
[1733801081879,5.4067,208.7,208.53,10.0]
[1733801082080,5.4067,208.7,208.51,10.0]
[1733801082293,5.4067,208.7,208.47,10.0]
[1733801082498,5.4067,208.7,208.53,10.0]
[1733801082792,5.4067,208.7,208.46,10.0]
[1733801082959,5.4067,208.7,208.48,10.0]
[1733801083159,19.7467,208.7,208.49,10.0]
[1733801083482,5.4067,208.7,208.49,10.0]
[1733801083804,5.4067,208.7,208.53,10.0]
[1733801083968,5.4067,208.7,208.54,10.0]
[1733801084294,5.4067,208.7,208.61,10.0]
[1733801084599,239.44143694,208.83,208.62,10.0]
[1733801084767,6.4994,208.81,208.64,10.0]
[1733801084967,6.4994,208.81,208.57,10.0]
[1733801085172,84.34,208.78,208.56,10.0]
[1733801085380,6.4994,208.81,208.64,10.0]
[1733801085589,6.4994,208.81,208.62,10.0]
[1733801085797,6.4994,208.81,208.65,10.0]
[1733801086089,6.4994,208.81,208.66,10.0]
[1733801086288,6.4994,208.81,208.65,10.0]
[1733801086459,6.4994,208.81,208.61,10.0]
[1733801086661,6.4994,208.81,208.58,10.0]
[1733801086662,24.2838,208.79,208.58,10.0]
[1733801086859,24.2838,208.79,208.57,10.0]
[1733801087164,24.2838,208.79,208.62,10.0]
[1733801087165,9.9438,208.79,208.62,10.0]
[1733801087470,79.9438,208.79,208.6,10.0]
[1733801087872,9.9438,208.79,208.6,10.0]
[1733801088191,84.34,208.78,208.55,10.0]
[1733801088492,84.34,208.78,208.6,10.0]
[1733801088996,84.34,208.78,208.56,10.0]
[1733801088997,84.34,208.74,208.53,10.0]
[1733801089173,84.34,208.71,208.51,20.0]
[1733801089380,70.0,208.71,208.53,10.0]
[1733801089587,14.34,208.72,208.53,10.0]
[1733801090009,14.34,208.72,208.51,20.0]
[1733801090304,70.0,208.71,208.53,10.0]
[1733801090506,239.44143694,208.75,208.56,10.0]
[1733801090814,239.44143694,208.75,208.57,10.0]
[1733801091119,70.0,208.72,208.51,10.0]
[1733801091412,70.0,208.72,208.51,20.0]
[1733801091714,14.34,208.71,208.49,10.0]
[1733801091881,70.0,208.72,208.52,10.0]
[1733801092087,309.44143694,208.75,208.52,20.0]
[1733801092315,239.44143694,208.75,208.58,10.0]
[1733801092808,239.44143694,208.75,208.59,10.0]
[1733801093109,9.9438,208.79,208.6,10.0]
[1733801093292,11.81711573,208.79,208.59,10.0]
[1733801093513,26.15711573,208.79,208.58,10.0]
[1733801093697,70.0,208.77,208.59,10.0]
[1733801093893,11.81711573,208.79,208.58,20.0]
[1733801094218,11.81711573,208.79,208.62,10.0]
[1733801094515,9.9438,208.79,208.64,10.0]
[1733801094706,9.9438,208.79,208.59,10.0]
[1733801095018,9.9438,208.79,208.62,10.0]
[1733801095203,9.9438,208.79,208.6,10.0]
[1733801095409,9.9438,208.79,208.62,10.0]
[1733801095923,9.9438,208.79,208.63,10.0]
[1733801096104,9.9438,208.79,208.6,10.0]
[1733801096284,9.9438,208.79,208.58,10.0]
[1733801096489,79.9438,208.79,208.58,10.0]
[1733801096689,9.9438,208.79,208.6,20.0]
[1733801096895,9.9438,208.79,208.6,10.0]
[1733801097328,81.8795979,208.79,208.55,10.0]
[1733801097627,84.34,208.72,208.51,10.0]
[1733801097920,239.44143694,208.75,208.54,10.0]
[1733801098106,9.9438,208.79,208.63,10.0]
[1733801099821,9.9438,208.79,208.67,10.0]
[1733801100032,1.94974237,208.86,208.74,10.0]
[1733801100332,9.9438,208.88,208.76,10.0]
[1733801100530,9.9438,208.88,208.7,10.0]
[1733801100701,9.9438,208.88,208.68,10.0]
[1733801100899,9.9438,208.88,208.7,10.0]
[1733801101108,84.34,208.85,208.65,10.0]
[1733801101432,79.9438,208.88,208.7,10.0]
[1733801101725,9.9438,208.88,208.73,10.0]
[1733801101928,9.9438,208.88,208.73,20.0]
[1733801102138,9.9438,208.88,208.75,10.0]
[1733801102335,9.9438,208.88,208.78,10.0]
[1733801102627,9.9438,208.97,208.84,10.0]
[1733801102825,9.9438,208.97,208.69,10.0]
[1733801102826,9.9438,208.97,208.73,10.0]
[1733801103121,9.9438,208.97,208.78,10.0]
[1733801103506,70.0,208.96,208.72,10.0]
[1733801103709,70.0,208.9,208.7,10.0]
[1733801103906,239.44143694,208.83,208.63,10.0]
[1733801104107,9.9438,208.8,208.6,10.0]
[1733801104315,70.0,208.78,208.56,10.0]
[1733801104510,9.9438,208.8,208.68,10.0]
[1733801104721,249.38523694,208.92,208.79,10.0]
[1733801104896,9.9438,208.92,208.77,10.0]
[1733801105106,9.9438,208.92,208.7,10.0]
[1733801105325,239.8907518,208.91,208.7,10.0]
[1733801105528,239.8907518,208.91,208.72,10.0]
[1733801105839,9.9438,208.92,208.79,10.0]
[1733801106301,9.9438,208.92,208.76,10.0]
[1733801106506,9.9438,208.92,208.8,10.0]
[1733801106704,9.9438,208.92,208.66,10.0]
[1733801106705,9.9438,208.92,208.77,10.0]
[1733801107122,9.9438,208.92,208.8,10.0]
[1733801107437,13.91853799,208.96,208.86,10.0]
[1733801107739,70.0,208.95,208.71,10.0]
[1733801108054,13.91853799,208.96,208.71,10.0]
[1733801108344,13.91853799,208.96,208.57,10.0]
[1733801108345,239.44143694,208.91,208.67,10.0]
[1733801108639,239.44143694,208.91,208.71,10.0]
[1733801108833,70.0,208.87,208.62,10.0]
[1733801109006,241.78223834,208.91,208.62,10.0]
[1733801109007,9.9438,208.83,208.62,10.0]
[1733801109207,9.9438,208.83,208.48,10.0]
[1733801109208,70.0,208.73,208.48,10.0]
[1733801109534,239.44143694,208.75,208.58,10.0]
[1733801109715,309.44143694,208.75,208.54,10.0]
[1733801110212,239.44143694,208.75,208.54,10.0]
[1733801110415,239.44143694,208.75,208.52,10.0]
[1733801110804,70.0,208.7,208.51,10.0]
[1733801111007,70.0,208.74,208.56,10.0]
[1733801111231,70.0,208.7,208.5,10.0]
[1733801111439,70.0,208.74,208.5,10.0]
[1733801111743,239.44143694,208.75,208.53,10.0]
[1733801112453,239.44143694,208.75,208.57,10.0]
[1733801112611,1.9528321,208.79,208.6,10.0]
[1733801112814,70.0,208.79,208.58,10.0]
[1733801113015,7.42382325,208.8,208.61,10.0]
[1733801113455,70.0,208.79,208.59,10.0]
[1733801113750,70.0,208.79,208.58,10.0]
[1733801114120,86.52680776,208.82,208.64,10.0]
[1733801114528,86.52680776,208.82,208.43,0.8316866]
[1733801114529,16.52680776,208.82,208.67,10.0]
[1733801114853,6.4994,208.82,208.7,10.0]
[1733801115054,6.4994,208.82,208.73,10.0]
[1733801115221,44.54453228,208.86,208.73,10.0]
[1733801115422,44.54453228,208.86,208.68,10.0]
[1733801115642,44.54453228,208.86,208.71,10.0]
[1733801115847,44.54453228,208.86,208.68,10.0]
[1733801116060,44.54453228,208.86,208.66,10.0]
[1733801116343,70.0,208.85,208.64,10.0]
[1733801116543,70.0,208.85,208.62,10.0]
[1733801117046,70.0,208.89,208.67,10.0]
[1733801117365,70.0,208.89,208.77,10.0]
[1733801117366,4.57040599,208.89,208.77,10.0]
[1733801117644,239.44143694,208.91,208.77,10.0]
[1733801118136,239.44143694,208.91,208.73,10.0]
[1733801118330,70.0,208.85,208.65,10.0]
[1733801118644,84.34,208.85,208.62,10.1101823]
[1733801118824,14.34,208.81,208.62,0.1101823]
[1733801119017,239.44143694,208.83,208.62,0.1101823]
[1733801119432,239.44143694,208.83,208.64,10.0]
[1733801119635,239.44143694,208.83,208.62,0.1101823]
[1733801119871,70.0,208.81,208.62,0.1101823]
[1733801120035,84.34,208.81,208.62,0.1101823]
[1733801120237,239.44143694,208.83,208.67,10.0]
[1733801120435,239.44143694,208.83,208.69,10.0]
[1733801120964,239.44143694,208.83,208.65,10.0]
[1733801121139,70.0,208.81,208.62,0.1101823]
[1733801121463,70.0,208.75,208.54,10.0]
[1733801121770,84.34,208.75,208.54,10.0]
[1733801122067,15.9677,208.74,208.54,10.0]
[1733801122363,84.34,208.72,208.52,10.0]
[1733801122537,70.0,208.69,208.5,10.0]
[1733801122934,7.46911412,208.72,208.55,10.5628171]
[1733801123132,7.46911412,208.72,208.55,0.5628171]
[1733801123133,77.46911412,208.72,208.55,0.5628171]
[1733801123364,7.46911412,208.72,208.55,0.5628171]
[1733801123769,7.46911412,208.72,208.59,10.0]
[1733801123936,7.46911412,208.72,208.57,10.0]
[1733801124132,7.46911412,208.72,208.59,10.0]
[1733801124346,7.46911412,208.72,208.56,10.0]
[1733801124870,7.46911412,208.72,208.63,10.0]
[1733801125090,7.46911412,208.72,208.55,0.5628171]
[1733801125091,7.46911412,208.72,208.66,10.0]
[1733801125363,7.46911412,208.72,208.55,0.5628171]
[1733801125364,7.46911412,208.72,208.56,10.0]
[1733801125576,7.46911412,208.72,208.62,10.0]
[1733801125866,7.46911412,208.72,208.67,10.0]
[1733801126235,70.0,208.65,208.44,10.0]
[1733801126548,70.0,208.65,208.34,11.2308171]
[1733801126549,3.37452425,208.64,208.43,10.0]
[1733801126748,3.82383911,208.64,208.43,10.0]
[1733801126963,3.82383911,208.64,208.47,10.0]
[1733801127176,14.34,208.61,208.4,10.0]
[1733801127400,1.86328684,208.6,208.42,10.0]
[1733801127564,1.86328684,208.6,208.39,10.0]
[1733801127767,70.0,208.59,208.39,10.0]
[1733801127967,3.37452425,208.58,208.39,10.0]
[1733801128271,3.37452425,208.58,208.41,10.0]
[1733801128495,3.37452425,208.58,208.39,10.0]
[1733801128866,70.0,208.56,208.39,10.0]
[1733801129064,3.37452425,208.58,208.35,10.0]
[1733801129294,309.44143694,208.57,208.4,10.0]
[1733801129593,239.44143694,208.57,208.38,10.0]
[1733801129891,239.44143694,208.57,208.41,10.0]
[1733801130095,309.8907518,208.57,208.39,10.0]
[1733801130263,309.44143694,208.57,208.39,10.0]
[1733801130468,309.8907518,208.57,208.39,10.0]
[1733801130690,309.44143694,208.57,208.39,10.0]
[1733801130875,0.44931486,208.56,208.39,10.0]
[1733801131096,70.0,208.54,208.39,10.0]
[1733801131420,70.0,208.54,208.36,10.0]
[1733801131721,239.44143694,208.48,208.14,10.668]
[1733801132214,79.8959472,208.47,208.16,10.0]
[1733801132413,239.44143694,208.48,208.22,10.0]
[1733801132592,5.58977953,208.52,208.29,10.0]
[1733801132795,16.0797,208.53,208.31,10.0]
[1733801133121,239.44143694,208.57,208.31,10.0]
[1733801133295,74.31099746,208.53,208.22,10.0]
[1733801133616,70.0,208.47,208.16,10.0]
[1733801133986,70.0,208.47,208.18,10.0]
[1733801134186,309.44143694,208.41,208.14,10.668]
[1733801134492,16.0797,208.46,208.21,10.0]
[1733801134851,16.0797,208.46,208.23,10.0]
[1733801135024,6.1019,208.46,208.25,10.0]
[1733801135189,6.1019,208.46,208.24,10.0]
[1733801135385,6.1019,208.46,208.14,10.668]
[1733801135386,6.1019,208.46,208.25,10.0]
[1733801135606,9.9778,208.54,208.28,10.0]
[1733801135805,4.57040599,208.52,208.3,10.0]
[1733801136017,4.57040599,208.52,208.17,12.0093]
[1733801136018,239.44143694,208.57,208.33,10.0]
[1733801136318,4.80005586,208.62,208.32,10.0]
[1733801136510,4.57040599,208.56,208.31,10.0]
[1733801136715,4.57040599,208.56,208.33,10.0]
[1733801136920,4.57040599,208.56,208.26,10.0]
[1733801137120,4.57040599,208.56,208.27,10.0]
[1733801137416,4.31099746,208.55,208.25,10.0]
[1733801137613,239.44143694,208.57,208.3,10.0]
[1733801137816,239.44143694,208.57,208.27,42.91155789]
[1733801137817,4.57040599,208.54,208.27,10.0]
[1733801138124,4.57040599,208.54,208.32,10.0]
[1733801138290,4.57040599,208.54,208.2,42.91155789]
[1733801138291,4.57040599,208.54,208.27,52.91155789]
[1733801138704,4.57040599,208.54,208.21,42.91155789]
[1733801139240,4.57040599,208.54,208.29,62.91155789]
[1733801139536,7.43072818,208.67,208.41,42.91155789]
[1733801139537,20.0,208.5,208.41,42.91155789]
[1733801139698,20.0,208.5,208.42,10.0]
[1733801139898,20.0,208.5,208.34,10.668]
[1733801140098,20.0,208.5,208.38,10.0]
[1733801140504,20.0,208.5,208.36,52.91155789]
[1733801141019,20.0,208.5,208.37,10.0]
[1733801141208,20.0,208.5,208.28,10.0]
[1733801141412,20.0,208.5,208.31,10.0]
[1733801141612,20.0,208.5,208.27,42.91155789]
[1733801141819,20.0,208.5,208.26,20.668]
[1733801142002,20.0,208.5,208.27,20.0]
[1733801142382,20.0,208.5,208.26,10.668]
[1733801143322,20.0,208.5,208.23,26.4046]
[1733801143524,20.0,208.5,208.23,10.0]
[1733801143706,20.0,208.5,208.21,62.91155789]
[1733801143908,239.44143694,208.48,208.14,16.2683]
[1733801144117,70.0,208.46,208.14,26.2683]
[1733801144423,239.44143694,208.48,208.14,26.2683]
[1733801144424,239.44143694,208.48,208.14,16.2683]
[1733801144603,239.44143694,208.48,208.17,10.0]
[1733801144805,239.44143694,208.48,208.19,10.0]
[1733801145021,239.44143694,208.48,208.19,52.91155789]
[1733801145639,239.44143694,208.48,208.2,10.0]
[1733801145797,70.0,208.47,208.15,42.91155789]
[1733801146001,239.44143694,208.48,208.19,10.0]
[1733801146216,239.44143694,208.48,208.19,20.0]
[1733801146747,239.44143694,208.48,208.21,10.0]
[1733801146962,20.0,208.5,208.26,20.0]
[1733801147128,0.5,208.47,208.24,19.5]
[1733801147529,0.5,208.47,208.24,9.5]
[1733801147728,0.5,208.47,208.26,9.5]
[1733801147941,0.5,208.47,208.22,9.5]
[1733801148144,0.5,208.47,208.26,9.5]
[1733801148451,0.5,208.45,208.2,10.0]
[1733801148617,0.5,208.46,208.24,9.5]
[1733801149551,0.5,208.46,208.19,52.41155789]
[1733801149770,0.5,208.46,208.15,10.0]
[1733801149771,1.0,208.42,208.17,42.91155789]
[1733801150414,1.0,208.46,208.18,19.0]
[1733801150619,1.0,208.46,208.21,42.91155789]
[1733801150830,1.0,208.48,208.26,10.0]
[1733801151448,20.0,208.5,208.26,10.0]
[1733801151631,20.0,208.5,208.33,19.0]
[1733801151835,20.0,208.5,208.31,9.0]
[1733801152041,20.0,208.5,208.29,52.91155789]
[1733801152546,20.0,208.5,208.34,9.0]
[1733801152864,20.0,208.5,208.2,42.91155789]
[1733801152865,20.0,208.5,208.39,9.0]
[1733801153020,20.0,208.5,208.43,9.0]
[1733801153352,20.0,208.5,208.4,10.0]
[1733801153563,20.0,208.5,208.35,312.0]
[1733801153735,20.0,208.5,208.32,42.91155789]
[1733801154254,20.0,208.5,208.3,9.0]
[1733801154450,20.0,208.5,208.34,51.91155789]
[1733801154962,20.0,208.5,208.34,42.91155789]
[1733801155549,20.0,208.5,208.36,9.0]
[1733801155725,20.0,208.5,208.42,61.91155789]
[1733801155925,20.0,208.5,208.42,51.91155789]
[1733801156143,20.0,208.5,208.38,42.91155789]
[1733801156561,20.0,208.5,208.3,42.91155789]
[1733801156562,20.0,208.5,208.36,42.91155789]
[1733801156721,20.0,208.5,208.32,42.91155789]
[1733801157060,20.0,208.5,208.29,19.0]
[1733801157061,20.0,208.5,208.3,51.91155789]
[1733801157388,20.0,208.5,208.29,10.0]
[1733801157389,20.0,208.5,208.28,52.91155789]